Cogmind - Beta 13 @@@ ROGUE MODE // 2024.05.27 @ 09:59:35 Player: karotgaemin Result: Self-destructed Performance ------------- Evolutions (3) 1500 Regions Visited (4) 800 Robots Destroyed (38) 190 Value Destroyed (1277) 1277 Prototype IDs (1) 20 Alien Tech Used (0) 0 Bonus (16) 16 TOTAL SCORE: 3803 Bonus ------- High Alert Combat Kills 16 Cogmind --------- Core Integrity 683/700 Matter 300/300 Energy 2/100 System Corruption 0% Temperature Cool (0) Movement Core (600) Ox11 Location -7/Factory Parts ------- > --- POWER (2) -------- (None) > --- PROPULSION (2) --- Light Treads Armored Treads > --- UTILITY (6) ------ Large Storage Unit Improved Terrain Scanner Improved Terrain Scan Processor Actuator Array > --- WEAPON (3) ------- Field Laser Pulse Rifle Flail > --- INVENTORY (15) --- Cooled Ion Engine Light Nuclear Core Light Nuclear Core Light Treads Carbon-fiber Leg Wheel Compact Wheel Improved Terrain Scanner Hardlight Generator Particle Gun Rocket Launcher Maul Peak State ------------ > --- POWER ------------ Light Nuclear Core Light Nuclear Core > --- PROPULSION ------- Light Treads Armored Treads > --- UTILITY ---------- Improved Heat Sink Large Storage Unit Improved Signal Interpreter Improved Terrain Scanner Improved Terrain Scan Processor Actuator Array > --- WEAPON ----------- Field Laser Pulse Rifle Maul > --- INVENTORY -------- Cooled Ion Engine Light Nuclear Core Light Nuclear Core Light Treads Carbon-fiber Leg Wheel Compact Wheel Improved Terrain Scanner Particle Charger Hardlight Generator Particle Gun Rocket Launcher Flail [Rating: 37] Favorites ----------- Power Light Nuclear Core Engine Light Ion Engine Power Core Light Nuclear Core Propulsion Aluminum Leg Treads Light Treads Leg Aluminum Leg Wheel Compact Wheel Utility Hacking Suite Device Actuator Array Storage Large Storage Unit Processor Improved Terrain Scan Processor Hackware Hacking Suite Protection Light Armor Plating Weapon Flail Energy Gun Pulse Rifle Ballistic Gun Light Assault Rifle Launcher Grenade Launcher Impact Weapon Flail Build | -11 -10 -9 -8 -7 ------- Run | Yrd Mat Mat Mat Fac Slots Evolved 6 | . . 2 2 2 Power 1 | . . . 1 . Propulsion . | . . . . . Utility 4 | . . 2 1 1 Weapon 1 | . . . . 1 Parts Attached 59 | 4 14 23 14 4 Power 13 | 1 3 6 3 . Engine 10 | 1 3 5 1 . Core 3 | . . 1 2 . Reactor . | . . . . . Propulsion 14 | 2 5 4 3 . Treads 8 | . 5 1 2 . Leg 4 | . . 3 1 . Wheel 2 | 2 . . . . Hover . | . . . . . Flight . | . . . . . Utility 16 | 1 1 7 5 2 Device 9 | . . 4 4 1 Storage 3 | 1 . 2 . . Processor 2 | . . . 1 1 Hackware 1 | . 1 . . . Protection 1 | . . 1 . . Artifact . | . . . . . Weapon 16 | . 5 6 3 2 Energy Gun 7 | . 1 3 2 1 Energy Cannon . | . . . . . Ballistic Gun 3 | . 2 1 . . Ballistic Cannon . | . . . . . Launcher 2 | . 1 1 . . Special Weapon . | . . . . . Impact Weapon 4 | . 1 1 1 1 Slashing Weapon . | . . . . . Piercing Weapon . | . . . . . Special Melee Weapon . | . . . . . Unidentified Prototypes 1 | . . 1 . . Parts Lost 16 | . 2 7 3 4 Power 4 | . 1 1 . 2 Propulsion 3 | . . 2 1 . Utility 6 | . . 2 2 2 Weapon 3 | . 1 2 . . Highest Loss Streak 4 | . 1 3 1 4 To Critical Strikes . | . . . . . Average Slot Usage (%) 94 | . 96 91 97 95 Engine 6 | . 13 5 2 . Core 7 | . . 4 15 12 Treads 8 | . 22 3 3 15 Leg 11 | . . 15 14 . Wheel 1 | . 4 . . . Device 17 | . . 18 27 28 Storage 10 | . 14 11 9 7 Processor 2 | . . . 5 7 Hackware 7 | . 13 11 1 . Energy Gun 6 | . . 6 9 15 Ballistic Gun 3 | . 5 6 . . Launcher 2 | . 7 . . . Impact Weapon 8 | . 12 6 9 7 Naked Turns . | . . . . . Heaviest Build 49 | 8 13 36 45 49 Greatest Support 40 | 26 40 40 40 40 Greatest Overweight (x) 3 | . 2 3 2 1 Average Overweight (x) . | . . . 1 . Largest Inventory Capacity 15 | 8 8 15 15 15 Average Capacity 12 | 6 8 12 15 15 Most Carried 15 | 7 8 11 15 14 Average Carried 9 | 4 7 8 11 12 Final Capacity 15 | 8 8 15 15 15 Final Carried 15 | 7 8 9 15 12 Class Distribution -------------------- 100% | Mutant Dominant Class ---------------- Mutant | -10/Materials Mutant | -9/Materials Mutant | -8/Materials Mutant | -7/Factory Resources | -11 -10 -9 -8 -7 ----------- Run | Yrd Mat Mat Mat Fac Matter Collected 837 | 168 185 284 159 41 Remotely 291 | . . 255 36 . Salvage Created 1464 | . 443 534 369 118 Parts 67 | . 20 30 13 4 Haulers Intercepted . | . . . . . Recyclers Shooed . | . . . . . Parts Field Recycled . | . . . . . Retrieved Matter . | . . . . . Parts Self-Destructed . | . . . . . Prevented . | . . . . . Kills | -11 -10 -9 -8 -7 ------- Run | Yrd Mat Mat Mat Fac Combat Hostiles Destroyed 34 | . 9 14 9 2 Melee 15 | . 8 4 3 . Guns 8 | . . 4 2 2 AOE 6 | . . 6 . . Classes Destroyed 7 | . 3 3 . 1 Builder 1 | . . 1 . . Recycler 2 | . 1 . 1 . Operator 1 | . 1 . . . Swarmer 4 | . . 1 3 . Grunt 26 | . 9 11 5 1 Brawler 1 | . . . . 1 Sentry 3 | . . 2 1 . Best Kill Streak 7 | . 4 7 4 2 Combat Bots Only 6 | . 4 6 3 2 Max Kills in Single Turn 2 | . 1 2 1 1 Gunslinging . | . . . . . Exploded 2 | . . 2 . . Melee 1 | . 1 1 1 . Uniques/NPCs Destroyed . | . . . . . Combat | -11 -10 -9 -8 -7 -------- Run | Yrd Mat Mat Mat Fac Hostile Shots Fired 278 | . 58 96 64 60 Missed 87 | . 12 26 24 25 Damage Taken 2693 | . 531 1204 494 464 Core 630 | . 179 305 129 17 Absorbed by Shields . | . . . . . Core Remaining (%) 56 | 100 28 23 76 . Volleys Fired 47 | . 4 25 6 12 Largest 2 | . 2 2 1 2 Hottest 126 | . 60 65 63 126 Shots Fired 66 | . 7 38 6 15 Gun 62 | . 7 34 6 15 Cannon . | . . . . . Launcher 4 | . . 4 . . Special . | . . . . . Kinetic 21 | . 4 17 . . Thermal 20 | . . . 5 15 Explosive 4 | . . 4 . . Electromagnetic 21 | . 3 17 1 . Robot Hit Streak 13 | . 1 13 5 6 Robot Miss Streak 2 | . 2 2 1 1 Penetration Max . | . . . . . Secondary Targets 1 | . . 1 . . Max Gunslinging Chain 1 | . . 1 . . Shots Hit Robots 111 | . 32 44 22 13 Core Hits 48 | . 9 26 8 5 Critical Kills 2 | . 1 . 1 . Critical Parts Destroyed 6 | . 3 2 1 . Critical Strikes 8 | . 4 2 2 . Smash 8 | . 4 2 2 . Melee Attacks 85 | . 42 20 23 . Impact 85 | . 42 20 23 . Slashing . | . . . . . Piercing . | . . . . . Sneak Attacks 2 | . 1 . 1 . Combat Hostiles . | . . . . . Follow-up Attacks . | . . . . . Damage Inflicted 2925 | . 814 1049 817 245 Guns 633 | . 25 281 82 245 Cannons . | . . . . . Explosions 375 | . . 375 . . Melee 1917 | . 789 393 735 . Ramming . | . . . . . Kinetic 90 | . 10 80 . . Thermal 315 | . . . 70 245 Explosive 231 | . . 231 . . Electromagnetic 372 | . 15 345 12 . Impact 1917 | . 789 393 735 . Slashing . | . . . . . Piercing . | . . . . . Highest Corruption 2 | . . 2 . . Average Corruption 1 | . . 1 . . Corruption Purged . | . . . . . Corruption Blocked . | . . . . . Effects 16 | . . 16 . . Message Errors 5 | . . 5 . . Matter Fused 5 | . . 5 . . Heat Flow Errors 3 | . . 3 . . Data Loss (minor) 1 | . . 1 . . Data Loss (major) 2 | . . 2 . . Overload Shots . | . . . . . Overflow Damage 342 | . 113 43 186 . Projectiles . | . . . . . Explosions . | . . . . . Melee 342 | . 113 43 186 . Knockbacks 10 | . 3 1 6 . Impact 8 | . 3 1 4 . Kinetic . | . . . . . Secondary 2 | . . . 2 . Self-Inflicted Damage 153 | . . 153 . . Shots 5 | . . 5 . . Rammed . | . . . . . Targets Rammed . | . . . . . Kicked . | . . . . . Crushed . | . . . . . Highest Temperature 230 | . 20 230 9 92 Average Temperature 44 | . 15 60 9 30 Received Heat Transfer 975 | . 291 360 207 117 Siege Activations . | . . . . . Robots Corrupted 1 | . . . 1 . Combat Hostiles 1 | . . . 1 . Parts Fried 7 | . 3 1 3 . Impact Corruptions 17 | . 6 3 8 . Robots Melted . | . . . . . Combat Hostiles . | . . . . . Parts Melted 1 | . 1 . . . Heat Transferred 629 | . . . 148 481 Parts Sabotaged . | . . . . . Parts Stolen . | . . . . . Parts Stripped . | . . . . . Power Chain Reactions . | . . . . . Alert | -11 -10 -9 -8 -7 ------- Run | Yrd Mat Mat Mat Fac Peak Influence 453 | . 245 453 212 41 Initial 62 | . . 61 62 11 Average 140 | . 106 230 84 12 Maximum Alert Level 2 | . 1 2 1 . Low Security (%) 76 | 100 95 44 94 100 Level 1 20 | . 4 47 5 . Level 2 3 | . . 8 . . Level 3 . | . . . . . Level 4 . | . . . . . Level 5 . | . . . . . High Security . | . . . . . Max Security . | . . . . . Squads Dispatched 6 | . 3 2 1 . Investigation 2 | . 1 1 . . Extermination . | . . . . . Reinforcement 4 | . 2 1 1 . Assault . | . . . . . Garrison . | . . . . . Intercept . | . . . . . Searches Triggered . | . . . . . Construction Impeded 1 | . . 1 . . Haulers Reinforced . | . . . . . Active Scanning Responses . | . . . . . Cargo Convoy Interrupts . | . . . . . Stealth | -11 -10 -9 -8 -7 --------- Run | Yrd Mat Mat Mat Fac Distress Signals 5 | . 2 2 1 . Communications Jammed . | . . . . . Distress Signals . | . . . . . Times Spotted 70 | . 20 26 19 5 Peak Tracking Total 7 | . 6 7 4 5 Tactical Retreats 6 | . 2 2 2 . Traps | -11 -10 -9 -8 -7 ------- Run | Yrd Mat Mat Mat Fac Traps Triggered 2 | . 2 . . . Indirectly . | . . . . . Trap Hack Attempts . | . . . . . Triggered . | . . . . . Disarmed . | . . . . . Reprogrammed . | . . . . . Reused . | . . . . . Traps Extracted . | . . . . . Installed . | . . . . . Triggered . | . . . . . Machines | -11 -10 -9 -8 -7 ---------- Run | Yrd Mat Mat Mat Fac Machines Disabled 3 | . . 3 . . Max in Single Turn 2 | . . 2 . . Machines Repaired . | . . . . . Machines Dismantled . | . . . . . Machines Sabotaged . | . . . . . Overloaded Fab Kills . | . . . . . Hacking | -11 -10 -9 -8 -7 --------- Run | Yrd Mat Mat Mat Fac Machines Accessed 3 | . 1 1 1 . Terminals 1 | . . 1 . . Fabricators . | . . . . . Repair Stations . | . . . . . Recycling Units 1 | . 1 . . . Scanalyzers . | . . . . . Garrison Access 1 | . . . 1 . Total Hacks 5 | . 1 3 1 . Successful 2 | . 1 1 . . Failed 3 | . . 2 1 . Catastrophic 1 | . . . 1 . Database Lockouts . | . . . . . Manual . | . . . . . Terminals 3 | . . 3 . . Fabricators . | . . . . . Repair Stations . | . . . . . Recycling Units 1 | . 1 . . . Scanalyzers . | . . . . . Garrison Access 1 | . . . 1 . Terminal Hacks 1 | . . 1 . . Alert Level 1 | . . 1 . . Fabricator Hacks . | . . . . . Repair Station Hacks . | . . . . . Recycling Unit Hacks 1 | . 1 . . . Retrieve Matter 1 | . 1 . . . Scanalyzer . | . . . . . Garrison Access Hacks . | . . . . . Unauthorized Hacks . | . . . . . Terminals . | . . . . . Fabricators . | . . . . . Repair Stations . | . . . . . Recycling Units . | . . . . . Scanalyzers . | . . . . . Garrison Access . | . . . . . Data Cores Recovered . | . . . . . Used . | . . . . . Hacking Detections 3 | . 1 1 1 . Full Trace Events 1 | . . 1 . . Feedback Events . | . . . . . Feedback Blocked . | . . . . . Robot Schematics Acquired . | . . . . . Robots Built . | . . . . . Authchips . | . . . . . Time . | . . . . . Total Robot Build Rating . | . . . . . Part Schematics Acquired . | . . . . . Parts Built . | . . . . . Authchips . | . . . . . Time . | . . . . . Total Part Build Rating . | . . . . . Parts Repaired . | . . . . . Time . | . . . . . Parts Recycled . | . . . . . Recycled Matter . | . . . . . Retrieved Matter . | . . . . . Retrieved Components . | . . . . . Parts Scanalyzed . | . . . . . Part Schematics Acquired . | . . . . . Parts Damaged . | . . . . . Bothacking | -11 -10 -9 -8 -7 ------------ Run | Yrd Mat Mat Mat Fac Used RIF Installer . | . . . . . Robots Hacked . | . . . . . Non-combat . | . . . . . Combat . | . . . . . Robot Hacks Applied . | . . . . . Relay Couplers Released . | . . . . . Fabnet Peak Effective % . | . . . . . Robots Rewired . | . . . . . Allies Hacked . | . . . . . Hacks Repelled . | . . . . . Allies | -11 -10 -9 -8 -7 -------- Run | Yrd Mat Mat Mat Fac Total Allies . | . . . . . Largest Group . | . . . . . Highest-Rated Group . | . . . . . Highest-Rated Ally . | . . . . . Total Orders . | . . . . . Ally Attacks . | . . . . . Total Damage . | . . . . . Kills . | . . . . . Allies Corrupted . | . . . . . Allies Melted . | . . . . . Intel | -11 -10 -9 -8 -7 ------- Run | Yrd Mat Mat Mat Fac Robot Analysis Total . | . . . . . Derelict Logs Recovered . | . . . . . Drone Launches . | . . . . . Drone Recoveries . | . . . . . Exploration | -11 -10 -9 -8 -7 ------------- Run | Yrd Mat Mat Mat Fac Turns Passed 3015 | 59 696 1148 991 121 Spaces Moved 1358 | 48 338 551 392 29 Core 6 | 4 2 . . . Treads 425 | . 262 60 74 29 Legs 809 | . . 491 318 . Wheels 118 | 44 74 . . . Hover . | . . . . . Flight . | . . . . . Fastest Speed 50 | 50 90 120 190 165 Average Speed 178 | 86 144 176 217 242 Slowest Speed 330 | 90 160 330 320 245 Overloaded Moves . | . . . . . Propulsion Burnouts . | . . . . . Robots Hopped . | . . . . . Cave-ins Triggered . | . . . . . Exploration Rate (%) 25 | 3 46 38 40 1 Regions Visited 4 Branch Regions . Pre-discovered Areas . | . . . . . Known Exits Taken . | . . . . . Unknown Exits Taken 4 | 1 1 1 1 . Scrap Searched . | . . . . . Spaces Dug . | . . . . . Terrain Destroyed 21 | . . 21 . . Melee . | . . . . . Projectile . | . . . . . AOE 21 | . . 21 . . Terrain Rammed . | . . . . . Walls Destroyed . | . . . . . Machines Disabled . | . . . . . Actions | -11 -10 -9 -8 -7 --------- Run | Yrd Mat Mat Mat Fac Total 1730 | 65 461 654 486 64 Wait 120 | 3 58 18 23 18 Move 1354 | 47 337 550 391 29 Hop . | . . . . . Pick Up 50 | 11 6 13 20 . Fast Attach 5 | . 3 2 . . Attach 25 | 4 5 8 5 3 Detach 1 | . . . . 1 Swap 29 | . 6 13 9 1 Drop 14 | . . 5 9 . Fire 47 | . 4 25 6 12 Melee 85 | . 42 20 23 . Ram . | . . . . . Kick . | . . . . . Crush . | . . . . . Escape Stasis . | . . . . . Rewire . | . . . . . Trap . | . . . . . Miscellaneous . | . . . . . Route ------- -11/Scrapyard -10/Materials (discovered 2 exits: *Mat / [*Min]) -9/Materials (discovered 2 exits: *Mat / [*Min]) -8/Materials -7/Factory History --------- Turn | Location | Event 12 | -11/Scrapyard | Discovered new exit (range 15) 60 | -11/Scrapyard | Entered Materials 317 | -10/Materials | Build established: Mutant 481 | -10/Materials | Core integrity fell below 50% 566 | -10/Materials | Discovered new exit (range 14) 671 | -10/Materials | Discovered new exit (range 16) 756 | -10/Materials | Entered another Materials area 756 | -9/Materials | Evolved 2 slots: Utility x2 949 | -9/Materials | Lost 3 parts (1n1u1w) 1023 | -9/Materials | Core integrity fell below 50% 1040 | -9/Materials | Discovered new exit (range 15) 1298 | -9/Materials | Discovered new exit (range 12) 1904 | -9/Materials | Entered another Materials area 1904 | -8/Materials | Evolved 2 slots: Power x1, Utility x1 2837 | -8/Materials | Discovered new exit (range 16) 2895 | -8/Materials | Entered Factory 2895 | -7/Factory | Evolved 2 slots: Utility x1, Weapon x1 3016 | -7/Factory | Self-destructed Last Messages --------------- C-30 ARC bursts open, deploying its payload. B-48 Gladiator unfolds itself. G-47 Trooper unfolds itself. Lgt. Nuclear Core destroyed. Slug penetrates Wall. B-48 Gladiator destroyed. Imp. Heat Sink destroyed. G-47 Trooper destroyed. U-05 Engineer builds a Door. R-06 Scavenger collects Mace. Acquired 41 matter. Lgt. Nuclear Core destroyed. Slug penetrates Wall. R-06 Scavenger collects Rnf. Deuterium Engine. Particle Charger destroyed. Slug penetrates Wall. R-06 Scavenger collects Lgt. Treads. R-06 Scavenger collects Aluminum Leg. Slug penetrates Wall. U-05 Engineer builds a Door. Map ----- +----------------------------------------------------+ | ?????????????????????????????????????????? | | ?????????????????????????????????????????? | | ?????????????????????????????????????????? | | ?????????????????????????????????????????? | | ?????????????????????????????????????????? | | ??????????? ??? ??????????????????????? | | ?????????# "??????????????????????????? | | ?????????# "%???? ?????????????????????? | | ?????????# "# ? ??"? ?????????????????? | | ????"?"? + + ??????????????????????? | | ???????" # # ??????????????????? | | ????? # #??F"????# ??????????????? | | ????? ? # # """? ? ? ???????????????? | | ?? ???? ?# #?? ? # ? ???????????? | | ???? ##### ##?####### ? ????????????? | | ???#?#?### ########## ? ???????????? | | ###?#?#?## # # ? ???????????? | | ????###?## # # ?? ??????????? | | #?######## # ##?####??????????? | | #??#?##### # ####???#?????????? | | ??##?##### # #####?#??????????? | | ##?#?#??## "# #?#####?#????????? | | ?#?####### "%# ||| #??#?####????????? | | ####?##?## + ||g #?#?##?##????????? | | ##?#####?# #%|| #? ? ?????????? | | ??##?##?## # @ g # ? ? ?? ?? ????? | | ##?##?#### ####/#####? ???????????? | | ?##?#?## ### ? ? ?? ???????? | | ?#?#??## #?# ??? ????????? | | ??###### #?# ? ? ????????? | | ?#####?# ### ? ?? ???????? | | ???##### #?# ??? ?????????? | | ???##??########## ###? ?? ? ?????????? | | ????#### ??? # ##? ? ???????????? | | ??#??### ? # ##? ? ??????????? | | ?#?#?###? ? ?+ ###?? ? ??????????? | | ??????## ? ?# ####?#?????????????? | | ??#??????? ? # #####??????????????? | | ?#?????? "?? ?? # #????? ???????????? | | ???#?#????Y?????# # ???? ????????????? | | ???????# ???? ?# #? ????????????????? | | ??#????#??? ?? ?? #??????????????????? | | ?#?????????#????? ?/??????????????????? | | ????????#?????? ?? ?????????????????????? | | ??????#????????? ????????????????????????? | | ?????????????????????????????????????????? | | ?????????????????????????????????????????? | | ?????????????????????????????????????????? | | ?????????????????????????????????????????? | | ?????????????????????????????????????????? | +----------------------------------------------------+ Best States ------------- Heat Dissipation 53 Energy Generation 23 Energy Capacity 280 Matter Stores 300 Matter Capacity 300 Sight Range 16 Terrain Scan Range 16 Terrain Scan Density 110 Armor Coverage 150 Evasion (%) 55 Recoil Reduction 2 Particle Charging 15 Offensive Hacking 10 Item Schematics ----------------- None Robot Schematics ------------------ None Fabricated ------------ Nothing Alien Tech Used ----------------- None Achievements -------------- Omniscient Cartographer Power Corrupts Challenges ------------ None Game ------ Seed NullLobotomyCannon Manual? 0 Play Time 00:23:52 Cumulative 6.0 hours Start 2024.05.27 @ 09:36:54 End 2024.05.27 @ 09:59:35 Sessions 1 Manual Loads 0 Difficulty Rogue Special Mode None Game No. 17 Rogue 17 Adventurer 0 Explorer 0 Win Type - Total 0 Types 0/0/0/0/0/0/0/0/0 Lore% 6 Gallery% 17 Achievement% 13 Wizard Run 0 Options --------- Layout 1 ASCII 0 Keyboard 0 Movement Mouse Keybinds 0 Fullscreen 1 Font 24/Smallcaps Map View 50x35 Zoom Use 0% Tactical HUD 0 Map Filters NONE Filters NONE Steam 1 RUN: 50a9bb1c-a57e-43fe-ba1b-b9e920087986